fUST/lending_fUST_20250719
["ID","MTS","AMOUNT","RATE_DAILY","PERIOD"]
[373292352,1752929472627,-761.122609,0.00022,7]
[373292353,1752929472647,-460.0,0.00022,2]
[373292354,1752929472668,-167.035715,0.00022,14]
[373292355,1752929472680,-151.0,0.00022,7]
[373292356,1752929472699,-214.52603969,0.00022,7]
[373292357,1752929472714,-3303.28,0.00022,2]
[373292358,1752929472731,-527.41,0.00022,2]
[373292359,1752929472746,-484.52,0.00022,2]
[373292360,1752929472761,-12612.80205064,0.00022,7]
[373292361,1752929472776,-1904.99,0.00022,2]
[373292362,1752929472793,-989.12,0.00022,2]
[373292363,1752929472808,-1134.49,0.00022,2]
[373292364,1752929472823,-460.0,0.00022,2]
[373292365,1752929472838,-1136.12,0.00022,2]
[373292366,1752929472852,-479.16,0.00022,2]
[373292367,1752929472867,-521.87,0.00022,2]
[373292368,1752929472882,-476.34170116,0.00022,7]
[373292369,1752929472897,-1278.81,0.00022,2]
[373292370,1752929472912,-498.33,0.00022001,2]
[373292371,1752929472926,-460.0,0.00022001,2]
[373292372,1752929472942,-460.0,0.00022001,2]
[373292373,1752929472956,-483.75,0.00022001,2]
[373292374,1752929472970,-629.02,0.00022001,2]
[373292375,1752929472985,-7042.04,0.00022001,2]
[373292376,1752929473000,-479.16,0.00022001,2]
[373292377,1752929473015,-498.33,0.00022001,2]
[373292378,1752929473030,-477.11,0.00022001,2]
[373292379,1752929473047,-3223.2,0.00022001,2]
[373292380,1752929473062,-663.26,0.00022001,2]
[373292381,1752929473079,-463.38,0.00022001,2]
[373292382,1752929473094,-544.55,0.00022001,2]
[373292383,1752929473109,-460.0,0.00022002,2]
[373292384,1752929473125,-1399.34,0.00022002,2]
[373292385,1752929473140,-828.53,0.00022002,2]
[373292386,1752929473155,-1547.59,0.00022003,2]
[373292387,1752929473170,-1426.56,0.00022003,2]
[373292388,1752929473185,-479.16,0.00022003,2]
[373292389,1752929473200,-1523.0,0.00022003,2]
[373292390,1752929473215,-1254.1,0.00022003,2]
[373292391,1752929473230,-5344.12628716,0.00022003,6]
[373292392,1752929473249,-566.0,0.00022092,2]
[373292393,1752929473263,-151.0,0.00022103,7]
[373292394,1752929473278,-206.395828,0.00022103,7]
[373292395,1752929473295,-620.44,0.00022103,2]
[373292396,1752929473310,-460.0,0.00022103,2]
[373292397,1752929473325,-500.0,0.00022129,2]
[373292398,1752929473341,-167.035715,0.00022141,6]
[373292399,1752929473355,-566.0,0.00022188,2]
[373292400,1752929473370,-500.0,0.00022227,2]
[373292401,1752929473476,-5344.12628716,0.00022245,6]
[373292402,1752929473504,-236.70578808,0.00022274,2]
[373292403,1752929473515,-3303.28,0.00022274,2]
[373292404,1752929473525,-527.41,0.00022274,2]
[373292405,1752929473535,-484.52,0.00022274,2]
[373292406,1752929473548,-1904.99,0.00022274,2]
[373292407,1752929473558,-989.12,0.00022274,2]
[373292408,1752929473568,-1134.49,0.00022274,2]
[373292409,1752929473580,-460.0,0.00022274,2]
[373292410,1752929473590,-1136.12,0.00022274,2]
[373292411,1752929473600,-479.16,0.00022274,2]
[373292412,1752929473610,-521.87,0.00022274,2]
[373292413,1752929473620,-1278.81,0.00022274,2]
[373292414,1752929473630,-498.33,0.00022275,2]
[373292415,1752929473639,-151.57,0.00022275,2]
[373292416,1752929473649,-460.0,0.00022275,2]
[373292417,1752929473660,-483.75,0.00022275,2]
[373292418,1752929473671,-629.02,0.00022275,2]
[373292419,1752929473680,-7042.04,0.00022275,2]
[373292420,1752929473690,-479.16,0.00022275,2]
[373292421,1752929473701,-498.33,0.00022275,2]
[373292422,1752929473711,-477.11,0.00022275,2]
[373292423,1752929473721,-3223.2,0.00022275,2]
[373292424,1752929473731,-663.26,0.00022275,2]
[373292425,1752929473741,-463.38,0.00022275,2]
[373292426,1752929473752,-544.55,0.00022275,2]
[373292427,1752929473763,-1399.34,0.00022276,2]
[373292428,1752929473773,-828.53,0.00022276,2]
[373292429,1752929473783,-1547.59,0.00022277,2]
[373292430,1752929473796,-1426.56,0.00022277,2]
[373292431,1752929473806,-479.16,0.00022277,2]
[373292432,1752929473816,-1523.0,0.00022277,2]
[373292433,1752929473826,-1254.1,0.00022277,2]
[373292434,1752929473836,-677.682365,0.00022303,8]
[373292435,1752929473846,-151.0,0.00022312,7]
[373292436,1752929473855,-151.0,0.00022312,7]
[373292437,1752929473865,-12500.0,0.00022312,7]
[373292438,1752929473875,-12500.0,0.0002232,7]
[373292439,1752929473885,-151.0,0.0002232,7]
[373292440,1752929473896,-151.0,0.0002232,7]
[373292441,1752929473906,-289.654597,0.00022321,7]
[373292442,1752929473916,-12500.0,0.00022321,7]
[373292443,1752929473925,-2751.80906737,0.00022327,7]
[373292444,1752929473935,-566.0,0.00022368,2]
[373292445,1752929473944,-566.0,0.00022371,2]
[373292446,1752929473953,-620.44,0.00022377,2]
[373292447,1752929473963,-460.0,0.00022377,2]
[373292448,1752929473973,-151.0,0.00022377,7]
[373292449,1752929473982,-151.0,0.00022377,7]
[373292450,1752929473991,-151.0,0.00022379,7]
[373292451,1752929474001,-151.0,0.00022379,7]
[373292452,1752929474010,-151.0,0.00022379,7]
[373292453,1752929474019,-167.035715,0.00022382,2]
[373292454,1752929474029,-566.0,0.00022427,2]
[373292455,1752929474039,-250.0,0.00022466,2]
[373292456,1752929474051,-150.75950598,0.00022466,2]
[373292457,1752929474061,-566.0,0.00022483,2]
[373292458,1752929474070,-5344.12628716,0.00022486,7]
[373292459,1752929474080,-3303.28,0.00022548,2]
[373292460,1752929474090,-527.41,0.00022548,2]
[373292461,1752929474101,-484.52,0.00022548,2]
[373292462,1752929474110,-1904.99,0.00022548,2]
[373292463,1752929474120,-989.12,0.00022548,2]
[373292464,1752929474130,-1134.49,0.00022548,2]
[373292465,1752929474140,-154.6,0.00022548,2]
[373292466,1752929474150,-1136.12,0.00022548,2]
[373292467,1752929474160,-479.16,0.00022548,2]
[373292468,1752929474171,-521.87,0.00022548,2]
[373292469,1752929474180,-1278.81,0.00022548,2]
[373292470,1752929474190,-498.33,0.00022549,2]
[373292471,1752929474200,-460.0,0.00022549,2]
[373292472,1752929474210,-483.75,0.00022549,2]
[373292473,1752929474220,-629.02,0.00022549,2]
[373292474,1752929474230,-7042.04,0.00022549,2]
[373292475,1752929474239,-479.16,0.00022549,2]
[373292476,1752929474249,-498.33,0.00022549,2]
[373292477,1752929474259,-477.11,0.00022549,2]
[373292478,1752929474268,-3223.2,0.00022549,2]
[373292479,1752929474278,-663.26,0.00022549,2]
[373292480,1752929474293,-463.38,0.00022549,2]
[373292481,1752929474303,-544.55,0.00022549,2]
[373292482,1752929474312,-151.0,0.0002255,7]
[373292483,1752929474322,-1399.34,0.0002255,2]
[373292484,1752929474333,-828.53,0.0002255,2]
[373292485,1752929474342,-1547.59,0.00022551,2]
[373292486,1752929474352,-1426.56,0.00022551,2]
[373292487,1752929474362,-479.16,0.00022551,2]
[373292488,1752929474371,-1523.0,0.00022551,2]
[373292489,1752929474381,-1254.1,0.00022551,2]
[373292490,1752929474391,-203.19342844,0.00022591,2]
[373292491,1752929474400,-151.44394268,0.00022591,2]
[373292492,1752929474410,-151.0,0.00022591,2]
[373292493,1752929474419,-151.0,0.00022591,2]
[373292494,1752929474429,-151.0,0.00022591,2]
[373292495,1752929474438,-500.0,0.00022591,2]
[373292496,1752929474448,-151.0,0.00022591,2]
[373292497,1752929474458,-151.87870992,0.00022591,2]
[373292498,1752929474467,-500.0,0.00022591,2]
[373292499,1752929474477,-151.0,0.00022591,2]
[373292500,1752929474487,-151.0,0.00022591,2]
[373292501,1752929474497,-151.99508711,0.00022591,2]
[373292502,1752929474507,-151.0,0.00022591,2]
[373292503,1752929474516,-151.0,0.00022591,2]
[373292504,1752929474526,-687.0,0.00022591,2]
[373292505,1752929474536,-500.0,0.00022591,2]
[373292506,1752929474547,-151.0,0.00022591,2]
[373292507,1752929474557,-151.0,0.00022591,2]
[373292508,1752929474567,-500.0,0.00022591,2]
[373292509,1752929474577,-151.0,0.00022591,2]
[373292510,1752929474590,-151.09681786,0.00022591,2]
[373292511,1752929474600,-151.0,0.00022591,2]
[373292512,1752929474610,-151.0,0.00022591,2]
[373292513,1752929474620,-151.0,0.00022591,2]
[373292514,1752929474630,-151.0,0.00022591,2]
[373292515,1752929474640,-151.0,0.00022591,2]
[373292516,1752929474650,-151.0,0.00022591,2]
[373292517,1752929474661,-615.0,0.00022591,2]
[373292518,1752929474671,-340.687604,0.00022603,2]
[373292519,1752929474681,-566.0,0.00022632,2]
[373292520,1752929474691,-566.0,0.0002265,2]
[373292521,1752929474701,-620.44,0.00022651,2]
[373292522,1752929474711,-460.0,0.00022651,2]
[373292523,1752929474720,-151.0,0.00022651,7]
[373292524,1752929474730,-151.0,0.00022651,7]
[373292525,1752929474740,-151.0,0.00022651,7]
[373292526,1752929474750,-210.768479,0.00022651,7]
[373292527,1752929474759,-210.768479,0.00022651,7]
[373292528,1752929474769,-2000.0,0.000227,2]
[373292529,1752929474778,-339.091953,0.000227,5]
[373292530,1752929474787,-167.035715,0.000227,5]
[373292531,1752929474799,-5344.12628716,0.00022728,7]
[373292532,1752929474809,-500.53907182,0.0002275,2]
[373292533,1752929474819,-500.0,0.0002275,2]
[373292534,1752929474828,-500.0,0.0002275,2]
[373292535,1752929474838,-500.0,0.00022759,2]
[373292536,1752929474848,-500.0,0.00022759,2]
[373292537,1752929474935,-500.0,0.00022759,2]
[373292538,1752929474945,-500.0,0.00022759,2]
[373292539,1752929474954,-500.0,0.00022759,2]
[373292540,1752929474963,-164.26806508,0.00022759,2]
[373292541,1752929474973,-500.0,0.00022759,2]
[373292542,1752929474983,-500.0,0.00022759,2]
[373292543,1752929474992,-500.0,0.00022759,2]
[373292544,1752929475003,-500.0,0.00022759,2]
[373292545,1752929475012,-500.0,0.00022759,2]
[373292546,1752929475021,-179.64412037,0.00022759,2]
[373292547,1752929475031,-696.15736734,0.00022759,2]
[373292548,1752929475041,-161.83540056,0.00022767,2]
[373292549,1752929475053,-206.0,0.0002277,2]
[373292550,1752929475062,-167.035715,0.00022798,6]
[373292551,1752929475072,-500.0,0.00022808,2]
[373292552,1752929475082,-2200.0,0.00022808,2]
[373292553,1752929475092,-566.0,0.00022819,2]
[373292554,1752929475102,-167.035715,0.0002282,3]
[373292555,1752929475111,-3303.34456334,0.00022822,2]
[373292556,1752929475121,-527.4258635,0.00022822,2]
[373292557,1752929475131,-484.54,0.00022822,2]
[373292558,1752929475141,-1905.05463446,0.00022822,2]
[373292559,1752929475151,-989.189597,0.00022822,2]
[373292560,1752929475160,-1134.55648344,0.00022822,2]
[373292561,1752929475169,-1136.24218928,0.00022822,2]
[373292562,1752929475179,-479.32,0.00022822,2]
[373292563,1752929475189,-522.03,0.00022822,2]
[373292564,1752929475199,-1278.87825847,0.00022822,2]
[373292565,1752929475208,-498.41,0.00022823,2]
[373292566,1752929475218,-180.29,0.00022823,2]
[373292567,1752929475228,-483.9,0.00022823,2]
[373292568,1752929475238,-629.21713409,0.00022823,2]
[373292569,1752929475247,-7042.220329,0.00022823,2]
[373292570,1752929475257,-479.32,0.00022823,2]
[373292571,1752929475267,-498.41,0.00022823,2]
[373292572,1752929475276,-477.2847832,0.00022823,2]
[373292573,1752929475287,-3223.36287452,0.00022823,2]
[373292574,1752929475298,-663.4602156,0.00022823,2]
[373292575,1752929475308,-463.49,0.00022823,2]
[373292576,1752929475317,-544.70312359,0.00022823,2]
[373292577,1752929475327,-1399.46314903,0.00022824,2]
[373292578,1752929475337,-828.59861876,0.00022824,2]
[373292579,1752929475347,-1547.78822197,0.00022825,2]
[373292580,1752929475357,-1426.59,0.00022825,2]
[373292581,1752929475366,-479.32,0.00022825,2]
[373292582,1752929475376,-1523.07279391,0.00022825,2]
[373292583,1752929475386,-1254.11762742,0.00022825,2]
[373292584,1752929475395,-2231.02,0.00022829,3]
[373292585,1752929475405,-231.28369723,0.00022835,2]
[373292586,1752929475414,-151.0,0.00022865,2]
[373292587,1752929475423,-151.0,0.00022865,2]
[373292588,1752929475432,-500.0,0.00022865,2]
[373292589,1752929475441,-151.0,0.00022865,2]
[373292590,1752929475450,-599.55373563,0.00022865,2]
[373292591,1752929475460,-151.0,0.00022865,2]
[373292592,1752929475468,-151.0,0.00022865,2]
[373292593,1752929475477,-151.0,0.00022865,2]
[373292594,1752929475486,-198.99342437,0.00022865,2]
[373292595,1752929475496,-687.0,0.00022865,2]
[373292596,1752929475505,-532.26403551,0.00022865,2]
[373292597,1752929475514,-151.0,0.00022865,2]
[373292598,1752929475524,-151.0,0.00022865,2]
[373292599,1752929475533,-626.68948773,0.00022865,2]
[373292600,1752929475544,-247.82111675,0.00022865,2]
[373292601,1752929475554,-151.0,0.00022865,2]
[373292602,1752929475563,-151.0,0.00022865,2]
[373292603,1752929475573,-151.0,0.00022865,2]
[373292604,1752929475587,-615.0,0.00022865,2]
[373292605,1752929475597,-566.0,0.00022886,2]
[373292606,1752929475606,-237.36839039,0.0002289,2]
[373292607,1752929475616,-9147.21087384,0.000229,7]
[373292608,1752929475626,-153.0,0.00022904,2]
[373292609,1752929475635,-153.0,0.00022904,2]
[373292610,1752929475644,-153.0,0.00022904,2]
[373292611,1752929475654,-153.0,0.00022904,2]
[373292612,1752929475664,-167.035715,0.00022922,14]
[373292613,1752929475673,-151.0,0.00022925,7]
[373292614,1752929475682,-620.62216321,0.00022925,2]
[373292615,1752929475691,-364.68,0.00022925,2]
[373292616,1752929475701,-2231.02,0.00022929,6]
[373292617,1752929475710,-5344.12628716,0.00022969,8]
[373292618,1752929475720,-566.0,0.0002298,2]
[373292619,1752929475730,-501269.39910707,0.0002299,7]
[373292620,1752929475739,-151.0,0.0002299,7]
[373292621,1752929475749,-151.0,0.0002299,7]
[373292622,1752929475758,-151.0,0.0002299,7]
[373292623,1752929475768,-151.0,0.0002299,7]
[373292624,1752929475778,-151.0,0.0002299,7]
[373292625,1752929475787,-151.0,0.0002299,7]
[373292626,1752929475799,-761.122609,0.0002299,7]
[373292627,1752929475810,-761.122609,0.0002299,7]
[373292628,1752929475819,-151.0,0.0002299,7]
[373292629,1752929475829,-151.0,0.0002299,7]
[373292630,1752929475838,-151.0,0.0002299,7]
[373292631,1752929475849,-151.0,0.0002299,7]
[373292632,1752929475858,-252.59985,0.0002299,7]
[373292633,1752929475868,-151.0,0.0002299,7]
[373292634,1752929475877,-210.768479,0.0002299,7]
[373292635,1752929475887,-210.768479,0.0002299,7]
[373292636,1752929475898,-151.0,0.0002299,7]
[373292637,1752929475908,-151.0,0.0002299,7]
[373292638,1752929475919,-160.0,0.00023,3]
[373292639,1752929475931,-160.0,0.00023,3]
[373292640,1752929475941,-9810.06450645,0.00023,2]
[373292641,1752929475951,-108391.51405508,0.00023,10]
[373292642,1752929475961,-28374.26107473,0.00023,2]
[373292643,1752929475972,-160.0,0.00023,10]
[373292644,1752929475983,-839.454303,0.00023,3]
[373292645,1752929475993,-160.0,0.00023,3]
[373292646,1752929476002,-160.0,0.00023,3]
[373292647,1752929476012,-66636.91,0.00023,10]
[373292648,1752929476022,-1000.0,0.00023,2]
[373292649,1752929476031,-160.0,0.00023,3]
[373292650,1752929476041,-214.52603969,0.00023,10]
[373292651,1752929476052,-230.94145789,0.00023,3]
[373292652,1752929476062,-12612.80205064,0.00023,10]
[373292653,1752929476072,-525.83049785,0.00023,3]
[373292654,1752929476083,-160.0,0.00023,3]
[373292655,1752929476093,-215.67360783,0.00023,3]
[373292656,1752929476102,-839.454303,0.00023,3]
[373292657,1752929476112,-350.0,0.00023014,2]
[373292658,1752929476121,-2231.02,0.00023029,3]
[373292659,1752929476131,-160.0,0.00023038,4]
[373292660,1752929476140,-566.0,0.00023072,2]
[373292661,1752929476224,-160.0,0.000231,3]
[373292662,1752929476236,-67429.5,0.000231,2]
[373292663,1752929476246,-151.0,0.000231,7]
[373292664,1752929476257,-151.0,0.000231,7]
[373292665,1752929476268,-151.0,0.000231,7]
[373292666,1752929476279,-151.0,0.000231,7]
[373292667,1752929476290,-151.0,0.000231,7]
[373292668,1752929476300,-151.0,0.000231,7]
[373292669,1752929476310,-151.0,0.000231,7]
[373292670,1752929476320,-761.122609,0.000231,7]
[373292671,1752929476331,-761.122609,0.000231,7]
[373292672,1752929476341,-151.0,0.000231,7]
[373292673,1752929476351,-151.0,0.000231,7]
[373292674,1752929476362,-151.0,0.000231,7]
[373292675,1752929476373,-151.0,0.000231,7]
[373292676,1752929476384,-210.768479,0.000231,7]
[373292677,1752929476394,-210.768479,0.000231,7]
[373292678,1752929476404,-151.0,0.000231,7]
[373292679,1752929476413,-300.776067,0.000231,7]
[373292680,1752929476423,-241.006365,0.00023129,7]
[373292681,1752929476432,-2231.02,0.00023129,3]
[373292682,1752929476442,-151.0,0.00023139,2]
[373292683,1752929476451,-292.0,0.00023139,2]
[373292684,1752929476461,-168.61273583,0.00023139,2]
[373292685,1752929476471,-151.0,0.00023139,2]
[373292686,1752929476482,-151.0,0.00023139,2]
[373292687,1752929476492,-151.0,0.00023139,2]
[373292688,1752929476502,-151.0,0.00023139,2]
[373292689,1752929476512,-687.0,0.00023139,2]
[373292690,1752929476523,-151.0,0.00023139,2]
[373292691,1752929476535,-151.0,0.00023139,2]
[373292692,1752929476545,-151.0,0.00023139,2]
[373292693,1752929476555,-615.0,0.00023139,2]
[373292694,1752929476564,-206.0,0.0002315,2]
[373292695,1752929476574,-200.0,0.0002319,7]
[373292696,1752929476588,-215.0,0.000232,4]
[373292697,1752929476597,-647.0,0.00023207,2]
[373292698,1752929476608,-2156.0,0.00023207,2]
[373292699,1752929476617,-968.0,0.00023207,2]
[373292700,1752929476628,-5344.12628716,0.0002321,8]
[373292701,1752929476637,-500.0,0.00023225,2]
[373292702,1752929476647,-2231.02,0.00023229,4]
[373292703,1752929476658,-397.077809,0.00023285,2]
[373292704,1752929476668,-13357.9,0.000233,7]
[373292705,1752929476678,-5197.1,0.000233,7]
[373292706,1752929476687,-2172.99,0.000233,7]
[373292707,1752929476697,-566.0,0.00023311,2]
[373292708,1752929476707,-1000.0,0.00023323,2]
[373292709,1752929476716,-2231.02,0.00023329,2]
[373292710,1752929476726,-566.0,0.00023331,2]
[373292711,1752929476735,-162.0,0.00023342,9]
[373292712,1752929476746,-167.035715,0.00023362,5]
[373292713,1752929476755,-566.0,0.00023389,2]
[373292714,1752929476765,-566.0,0.00023412,2]
[373292715,1752929476775,-151.0,0.00023413,2]
[373292716,1752929476784,-251.1537997,0.00023413,2]
[373292717,1752929476794,-151.0,0.00023413,2]
[373292718,1752929476804,-151.0,0.00023413,2]
[373292719,1752929476813,-151.0,0.00023413,2]
[373292720,1752929476823,-687.0,0.00023413,2]
[373292721,1752929476833,-151.0,0.00023413,2]
[373292722,1752929476843,-151.0,0.00023413,2]
[373292723,1752929476853,-615.0,0.00023413,2]
[373292724,1752929476863,-566.0,0.00023416,2]
[373292725,1752929476872,-2231.02,0.00023429,2]
[373292726,1752929476882,-5344.12628716,0.00023452,9]
[373292727,1752929476892,-167.035715,0.00023454,6]
[373292728,1752929476901,-500.0,0.00023456,2]
[373292729,1752929476911,-2231.02,0.00023529,2]
[373292730,1752929476921,-206.0,0.0002353,2]
[373292731,1752929476930,-450.0,0.00023562,2]
[373292732,1752929476940,-2231.02,0.00023629,2]
[373292733,1752929476949,-246.784375,0.00023687,2]
[373292734,1752929476959,-151.0,0.00023687,2]
[373292735,1752929476968,-151.0,0.00023687,2]
[373292736,1752929476977,-201.27366079,0.00023687,2]
[373292737,1752929476987,-687.0,0.00023687,2]
[373292738,1752929476997,-151.0,0.00023687,2]
[373292739,1752929477007,-198.0,0.00023687,2]
[373292740,1752929477017,-615.0,0.00023687,2]
[373292741,1752929477026,-5344.12628716,0.00023693,9]
[373292742,1752929477036,-1113.58926198,0.000237,30]
[373292743,1752929477047,-2000.0,0.000237,2]
[373292744,1752929477056,-153.0,0.00023726,2]
[373292745,1752929477065,-153.0,0.00023726,2]
[373292746,1752929477074,-153.0,0.00023726,2]
[373292747,1752929477084,-153.0,0.00023726,2]
[373292748,1752929477093,-153.0,0.00023726,2]
[373292749,1752929477102,-153.0,0.00023726,2]
[373292750,1752929477112,-153.0,0.00023726,2]
[373292751,1752929477121,-153.0,0.00023726,2]
[373292752,1752929477130,-153.0,0.00023726,2]
[373292753,1752929477138,-153.0,0.00023726,2]
[373292754,1752929477147,-153.0,0.00023726,2]
[373292755,1752929477156,-308.7628533,0.00023726,2]
[373292756,1752929477165,-306.0,0.00023726,2]
[373292757,1752929477175,-2231.02,0.00023729,6]
[373292758,1752929477184,-2231.02,0.00023829,7]
[373292759,1752929477193,-167.035715,0.00023845,14]
[373292760,1752929477203,-167.035715,0.00023847,2]
[373292761,1752929477212,-206.0,0.000239,2]
[373292762,1752929477222,-2872.15274685,0.000239,2]
[373292763,1752929477231,-167.035715,0.00023915,3]
[373292764,1752929477240,-2231.02,0.00023929,7]
[373292765,1752929477250,-5344.12628716,0.00023934,10]
[373292766,1752929477259,-173.44796763,0.00023961,2]
[373292767,1752929477268,-198.0,0.00023961,2]
[373292768,1752929477278,-687.0,0.00023961,2]
[373292769,1752929477287,-245.0,0.00023961,2]
[373292770,1752929477298,-615.0,0.00023961,2]
[373292771,1752929477307,-525.83049785,0.00024,7]
[373292772,1752929477316,-160.0,0.00024,7]
[373292773,1752929477326,-160.0,0.00024,7]
[373292774,1752929477335,-160.0,0.00024,10]
[373292775,1752929477344,-160.0,0.00024,7]
[373292776,1752929477354,-628.0,0.00024,2]
[373292777,1752929477364,-168.0,0.00024,7]
[373292778,1752929477373,-230.94145789,0.00024,7]
[373292779,1752929477382,-230.94145789,0.00024,10]
[373292780,1752929477391,-525.83049785,0.00024,7]
[373292781,1752929477401,-525.83049785,0.00024,10]
[373292782,1752929477411,-160.0,0.00024,7]
[373292783,1752929477420,-160.0,0.00024,10]
[373292784,1752929477430,-215.67360783,0.00024,7]
[373292785,1752929477440,-215.67360783,0.00024,10]
[373292786,1752929477450,-839.454303,0.00024,7]
[373292787,1752929477459,-839.454303,0.00024,10]
[373292788,1752929477469,-180.0,0.00024,7]
[373292789,1752929477478,-2549.74730144,0.00024003,2]
[373292790,1752929477488,-167.035715,0.00024024,5]
[373292791,1752929477498,-2231.02,0.00024029,5]
[373292792,1752929477507,-180.0,0.00024071,7]
[373292793,1752929477518,-2549.74730144,0.00024103,2]
[373292794,1752929477527,-550.0,0.0002411,2]
[373292795,1752929477537,-167.035715,0.00024111,6]
[373292796,1752929477547,-2231.02,0.00024129,3]
[373292797,1752929477557,-5198.71681779,0.00024157,2]
[373292798,1752929477568,-5344.12628716,0.00024176,10]
[373292799,1752929477579,-160.0,0.00024185,5]
[373292800,1752929477590,-67429.5,0.000242,2]
[373292801,1752929477600,-2549.74730144,0.00024203,2]
[373292802,1752929477610,-239.84119403,0.00024204,2]
[373292803,1752929477620,-2231.02,0.00024229,5]
[373292804,1752929477629,-687.0,0.00024235,2]
[373292805,1752929477640,-615.0,0.00024235,2]
[373292806,1752929477651,-206.0,0.0002428,2]
[373292807,1752929477661,-2000.0,0.000243,2]
[373292808,1752929477671,-2000.0,0.000243,2]
[373292809,1752929477680,-2549.74730144,0.00024303,2]
[373292810,1752929477690,-500.0,0.00024321,2]
[373292811,1752929477700,-2231.17999758,0.00024329,6]
[373292812,1752929477711,-600.0,0.00024398,2]
[373292813,1752929477720,-2549.74730144,0.00024403,2]
[373292814,1752929477730,-5344.12628716,0.00024417,11]
[373292815,1752929477740,-1500.0,0.00024418,2]
[373292816,1752929477749,-215.0,0.000245,8]
[373292817,1752929477759,-13357.9,0.000245,7]
[373292818,1752929477768,-5197.1,0.000245,7]
[373292819,1752929477778,-2172.99,0.000245,7]
[373292820,1752929477787,-2549.74730144,0.00024503,2]
[373292821,1752929477798,-687.0,0.00024509,2]
[373292822,1752929477809,-615.0,0.00024509,2]
[373292823,1752929477819,-153.0,0.00024548,2]
[373292824,1752929477829,-153.0,0.00024548,2]
[373292825,1752929477838,-153.0,0.00024548,2]
[373292826,1752929477853,-2549.74730144,0.00024603,2]
[373292827,1752929477862,-151.0,0.00024603,7]
[373292828,1752929477872,-226367.27251895,0.0002465,2]
[373292829,1752929477882,-501.92451973,0.0002465,2]
[373292830,1752929477892,-286.916508,0.0002465,7]
[373292831,1752929477901,-151.0,0.0002465,7]
[373292832,1752929477911,-151.0,0.0002465,7]
[373292833,1752929477921,-151.0,0.0002465,7]
[373292834,1752929477930,-154.923576,0.0002465,7]
[373292835,1752929477939,-761.122609,0.0002465,7]
[373292836,1752929477948,-761.122609,0.0002465,7]
[373292837,1752929477958,-151.0,0.0002465,7]
[373292838,1752929477967,-151.0,0.0002465,7]
[373292839,1752929477977,-151.0,0.0002465,7]
[373292840,1752929477987,-151.0,0.0002465,7]
[373292841,1752929477996,-210.768479,0.0002465,7]
[373292842,1752929478006,-210.768479,0.0002465,7]
[373292843,1752929478016,-151.0,0.0002465,7]
[373292844,1752929478026,-600.0,0.00024653,2]
[373292845,1752929478036,-467.52,0.00024657,2]
[373292846,1752929478047,-467.52,0.00024657,2]
[373292847,1752929478057,-467.52,0.00024657,2]
[373292848,1752929478067,-467.52,0.00024657,2]
[373292849,1752929478077,-467.52,0.00024657,2]
[373292850,1752929478088,-467.52,0.00024657,2]
[373292851,1752929478098,-467.52,0.00024657,2]